bitfinex/quotes_BTCUSD_20240717
["timestamp","ask_amount","ask_price","bid_price","bid_amount"]
[1721201992820,0.001,65424.0,65423.0,2.62356539]
[1721201993081,0.001,65424.0,65423.0,2.55500677]
[1721201993626,0.001,65424.0,65423.0,3.25500677]
[1721201994258,0.001,65424.0,65423.0,3.48216926]
[1721201994497,0.001,65424.0,65423.0,3.82097955]
[1721201995283,0.001,65424.0,65423.0,3.52897623]
[1721201995509,0.00084,65436.0,65435.0,1.775407]
[1721201995696,0.00084,65436.0,65435.0,2.54246771]
[1721201995930,0.00084,65436.0,65435.0,2.55470912]
[1721201996139,0.00084,65436.0,65435.0,2.07210912]
[1721201996445,0.00084,65436.0,65435.0,1.99190912]
[1721201996605,0.08274,65436.0,65435.0,0.01224141]
[1721201996803,0.20991479,65436.0,65435.0,0.01424141]
[1721201997019,0.20991479,65436.0,65435.0,0.005]
[1721201997327,0.27411479,65436.0,65435.0,0.005]
[1721201998079,0.27411479,65436.0,65435.0,0.003]
[1721201998286,0.05,65435.0,65434.0,0.152823]
[1721201998512,0.05,65435.0,65434.0,0.252823]
[1721201998968,0.14694,65436.0,65435.0,0.764115]
[1721201999179,0.14694,65436.0,65435.0,1.04149674]
[1721201999324,0.14694,65436.0,65435.0,1.04449674]
[1721201999526,0.14694,65436.0,65435.0,1.05673815]
[1721201999737,0.14694,65436.0,65435.0,1.05373815]
[1721202000496,0.14694,65436.0,65435.0,1.06573815]
[1721202001670,0.14694,65436.0,65435.0,1.05373815]
[1721202002001,0.14694,65436.0,65435.0,1.06573815]
[1721202002173,0.14694,65436.0,65435.0,1.05373815]
[1721202002376,0.14694,65436.0,65435.0,0.44244615]
[1721202002553,0.14694,65436.0,65435.0,0.46444615]
[1721202002761,0.14694,65436.0,65435.0,0.75809215]
[1721202002961,0.14694,65436.0,65435.0,1.05373815]
[1721202003166,0.14694,65436.0,65435.0,1.06573815]
[1721202003362,0.06504,65436.0,65435.0,1.07573815]
[1721202003562,0.06504,65436.0,65435.0,1.06373815]
[1721202003763,0.06504,65436.0,65435.0,1.05373815]
[1721202004514,0.06504,65436.0,65435.0,0.74459461]
[1721202005035,0.06504,65436.0,65435.0,0.75459461]
[1721202005657,0.06504,65436.0,65435.0,1.07224061]
[1721202006042,0.06504,65436.0,65435.0,1.07424061]
[1721202006440,0.06504,65436.0,65435.0,1.06324061]
[1721202006656,0.06504,65436.0,65435.0,1.07524061]
[1721202007607,0.06504,65436.0,65435.0,1.07324061]
[1721202007962,0.06504,65436.0,65435.0,1.07424061]
[1721202008402,0.06504,65436.0,65435.0,0.78159461]
[1721202008549,0.06504,65436.0,65435.0,0.76859461]
[1721202008951,0.06504,65436.0,65435.0,0.78259461]
[1721202009156,0.06504,65436.0,65435.0,0.76859461]
[1721202009381,0.06504,65436.0,65435.0,0.74459461]
[1721202009615,0.06504,65436.0,65435.0,0.77159461]
[1721202010008,0.06504,65436.0,65435.0,0.75859461]
[1721202010416,0.06504,65436.0,65435.0,0.77159461]
[1721202011238,0.06504,65436.0,65435.0,0.75759461]
[1721202011440,0.06504,65436.0,65435.0,0.74459461]
[1721202011664,0.06504,65436.0,65435.0,0.75659461]
[1721202012199,0.06504,65436.0,65435.0,0.04374387]
[1721202012200,0.19534,65436.0,65435.0,0.04374387]
[1721202012394,0.653803,65436.0,65435.0,0.02074387]
[1721202012603,0.653803,65436.0,65435.0,0.012]
[1721202012604,0.19534,65436.0,65435.0,0.012]
[1721202012800,0.19811097,65436.0,65435.0,0.022]
[1721202013452,0.19811097,65436.0,65435.0,0.02051541]
[1721202013651,0.19534,65436.0,65435.0,0.03051541]
[1721202014002,0.19811097,65436.0,65435.0,0.03051541]
[1721202014236,0.19534,65436.0,65435.0,0.03051541]
[1721202014433,0.19534,65436.0,65435.0,0.01851541]
[1721202014671,0.14534,65436.0,65435.0,0.033]
[1721202014901,0.19534,65436.0,65435.0,0.045]
[1721202015122,0.19534,65436.0,65435.0,0.022]
[1721202015123,0.348161,65436.0,65435.0,0.022]
[1721202017104,0.348161,65436.0,65435.0,0.03049355]
[1721202018135,0.14534,65436.0,65435.0,0.03049355]
[1721202018350,0.14534,65436.0,65435.0,0.20631655]
[1721202018553,0.00084,65436.0,65435.0,1.41268837]
[1721202018755,0.00084,65436.0,65435.0,2.17047392]
[1721202019967,0.00076765,65436.0,65435.0,2.17046704]
[1721202020895,0.00076765,65436.0,65435.0,2.50675304]
[1721202021068,0.00076765,65436.0,65435.0,2.57654375]
[1721202021270,0.00076765,65436.0,65435.0,3.05553075]
[1721202021448,0.00076765,65436.0,65435.0,2.91095131]
[1721202021652,0.00076765,65436.0,65435.0,2.89695131]
[1721202022066,0.00076765,65436.0,65435.0,2.90095131]
[1721202022886,0.00076765,65436.0,65435.0,2.8374849]
[1721202023082,0.00076765,65436.0,65435.0,2.91491542]
[1721202023463,0.00076765,65436.0,65435.0,2.91927145]
[1721202023665,0.00076765,65436.0,65435.0,2.98784079]
[1721202023926,0.00076765,65436.0,65435.0,3.61927145]
[1721202024127,0.00076765,65436.0,65435.0,3.68784079]
[1721202024333,0.00076765,65436.0,65435.0,3.61927145]
[1721202024531,0.00076765,65436.0,65435.0,3.68348289]
[1721202024753,0.00076765,65436.0,65435.0,2.96948289]
[1721202025299,0.00076765,65436.0,65435.0,2.95548289]
[1721202025502,0.00076765,65436.0,65435.0,2.64472583]
[1721202026117,0.00076765,65436.0,65435.0,2.63072004]
[1721202026491,0.00076765,65436.0,65435.0,2.64472004]
[1721202027081,0.00076765,65436.0,65435.0,2.99233083]
[1721202027274,0.00076765,65436.0,65435.0,3.05948848]
[1721202027444,0.00076765,65436.0,65435.0,3.07348673]
[1721202027671,0.00076765,65436.0,65435.0,3.77348636]
[1721202028034,0.00076765,65436.0,65435.0,3.77348671]
[1721202028245,0.00076765,65436.0,65435.0,4.19339707]
[1721202028490,0.025,65448.0,65447.0,1.611865]
[1721202028661,0.025,65448.0,65447.0,2.54399863]
[1721202028877,0.025,65448.0,65447.0,2.55244678]
[1721202029084,0.025,65448.0,65447.0,2.42558489]
[1721202029245,0.025,65448.0,65447.0,2.88866242]
[1721202029442,0.025,65448.0,65447.0,2.93434644]
[1721202029714,0.025,65448.0,65447.0,2.88865534]
[1721202029883,0.025,65448.0,65447.0,2.93433921]
[1721202030062,0.025,65448.0,65447.0,2.94833921]
[1721202030423,0.025,65448.0,65447.0,3.60265534]
[1721202030762,0.025,65448.0,65447.0,3.60265321]
[1721202031152,0.025,65448.0,65447.0,3.61665321]
[1721202032217,0.025,65448.0,65447.0,3.60265321]
[1721202032414,0.025,65448.0,65447.0,3.60265158]
[1721202032590,0.025,65448.0,65447.0,3.6200588]
[1721202033360,0.05805787,65466.0,65464.0,1.874799]
[1721202033581,0.05805787,65466.0,65464.0,2.00481743]
[1721202033789,0.00838,65466.0,65464.0,2.00481743]
[1721202034283,0.00838,65466.0,65464.0,1.98251743]
[1721202034519,0.00838,65466.0,65464.0,1.50000643]
[1721202034734,0.00838,65466.0,65464.0,1.57316974]
[1721202034910,0.00838,65466.0,65464.0,1.58716974]
[1721202035126,0.00838,65466.0,65464.0,1.37316974]
[1721202035359,0.00838,65466.0,65464.0,1.57316974]
[1721202035566,0.00838,65466.0,65464.0,1.58716974]
[1721202035763,0.00838,65466.0,65464.0,1.38716974]
[1721202035939,0.00838,65466.0,65464.0,2.11498074]
[1721202036083,0.00838,65466.0,65464.0,2.27243399]
[1721202036282,0.00838,65466.0,65464.0,2.28643399]
[1721202036524,0.00838,65466.0,65464.0,2.27243399]
[1721202036677,0.00838,65466.0,65464.0,2.25843399]
[1721202036925,0.00838,65466.0,65464.0,2.27243399]
[1721202037396,0.00838,65466.0,65464.0,2.28643399]
[1721202037843,0.00838,65466.0,65464.0,2.27243399]
[1721202038067,0.00838,65466.0,65464.0,2.28643399]
[1721202038290,0.00838,65466.0,65464.0,2.70990499]
[1721202038492,0.00838,65466.0,65464.0,2.69590018]
[1721202038707,0.00838,65466.0,65464.0,2.70990018]
[1721202039108,0.00838,65466.0,65464.0,3.13502918]
[1721202039404,0.00838,65466.0,65464.0,3.12102918]
[1721202039698,0.00838,65466.0,65464.0,3.45454018]
[1721202039823,0.00838,65466.0,65464.0,3.44054018]
[1721202040024,0.00838,65466.0,65464.0,3.42654018]
[1721202040230,0.00838,65466.0,65464.0,3.44054018]
[1721202040427,0.00838,65466.0,65464.0,3.45454018]
[1721202040717,0.00050859,65466.0,65465.0,1.710923]
[1721202040924,0.00050859,65466.0,65465.0,2.81511318]
[1721202041167,0.00050859,65466.0,65465.0,2.68830474]
[1721202041368,0.00050859,65466.0,65465.0,2.81510366]
[1721202041544,0.00050859,65466.0,65465.0,2.68830474]
[1721202041748,0.00050859,65466.0,65465.0,2.81510366]
[1721202041956,0.00050859,65466.0,65465.0,2.55335988]
[1721202042154,0.00050859,65466.0,65465.0,2.81510366]
[1721202042988,0.00050859,65466.0,65465.0,2.82910366]
[1721202043348,0.00050859,65466.0,65465.0,2.81510366]
[1721202043551,1e-08,65466.0,65465.0,2.81510366]
[1721202044064,1e-08,65466.0,65465.0,2.53759766]
[1721202044269,1e-08,65466.0,65465.0,2.73759766]
[1721202044716,1e-08,65466.0,65465.0,2.73760026]
[1721202044952,1e-08,65466.0,65465.0,2.03760026]
[1721202045153,1e-08,65466.0,65465.0,2.34310626]
[1721202047372,1e-08,65466.0,65465.0,2.03760026]
[1721202047969,1e-08,65466.0,65465.0,1.91079874]
[1721202048155,1e-08,65466.0,65465.0,2.03759924]
[1721202049182,1e-08,65466.0,65465.0,2.34310524]
[1721202049831,1e-08,65466.0,65465.0,1.83759924]
[1721202050079,1e-08,65466.0,65465.0,2.03759924]
[1721202050738,1e-08,65466.0,65465.0,2.73759924]
[1721202051195,1e-08,65466.0,65465.0,2.73760207]
[1721202051527,1e-08,65466.0,65465.0,2.79877037]
[1721202052384,1e-08,65466.0,65465.0,2.81711565]
[1721202053583,1e-08,65466.0,65465.0,2.81803965]
[1721202054234,1e-08,65466.0,65465.0,2.67289174]
[1721202054439,1e-08,65466.0,65465.0,2.86309613]
[1721202057517,1e-08,65466.0,65465.0,2.86309757]
[1721202058349,0.00836,65471.0,65470.0,1.29983]
[1721202058568,0.00836,65471.0,65470.0,2.25014398]
[1721202058773,0.00836,65471.0,65470.0,2.95014398]
[1721202059555,0.00836,65471.0,65470.0,2.96414398]
[1721202059764,0.00836,65471.0,65470.0,3.00920005]
[1721202060564,0.00836,65471.0,65470.0,3.02319918]
[1721202061642,0.00836,65471.0,65470.0,3.19649758]
[1721202061843,0.00836,65471.0,65470.0,3.39649758]
[1721202062050,0.00836,65471.0,65470.0,2.88707618]
[1721202062256,0.15086,65471.0,65470.0,2.4013747]
[1721202062652,0.15086,65471.0,65470.0,1.9728917]
[1721202062994,0.15086,65471.0,65470.0,1.14608874]
[1721202063186,0.15086,65471.0,65470.0,1.27290956]
[1721202063390,0.15086,65471.0,65470.0,1.25890956]
[1721202063818,0.15086,65471.0,65470.0,1.29590956]
[1721202064047,0.15086,65471.0,65470.0,1.39590956]
[1721202064376,0.15086,65471.0,65470.0,1.40990956]
[1721202064640,0.15086,65471.0,65470.0,1.39590956]
[1721202064791,0.15086,65471.0,65470.0,1.36790956]
[1721202064983,0.15086,65471.0,65470.0,1.35890956]
[1721202065219,0.15086,65471.0,65470.0,1.37290956]
[1721202065424,0.15086,65471.0,65470.0,1.35890956]
[1721202065751,0.15086,65471.0,65470.0,1.37290956]
[1721202066185,0.15086,65471.0,65470.0,1.37291091]
[1721202069241,0.15086,65471.0,65470.0,1.37290739]
[1721202070000,0.15086,65471.0,65470.0,1.37290679]
[1721202072633,0.15086,65471.0,65470.0,1.37290693]
[1721202075855,0.15086,65471.0,65470.0,1.372908]
[1721202078388,0.15086,65471.0,65470.0,1.678391]
[1721202078591,0.15086,65471.0,65470.0,1.701391]
[1721202078789,0.15086,65471.0,65470.0,1.395908]
[1721202079047,0.15086,65471.0,65470.0,1.39590792]
[1721202080571,0.15086,65471.0,65470.0,1.09042492]
[1721202080771,0.353599,65471.0,65470.0,0.028]
[1721202081462,0.20086,65471.0,65470.0,0.028]
[1721202081571,0.20363097,65471.0,65470.0,0.028]
[1721202081778,0.20363097,65471.0,65470.0,0.014]
[1721202082395,0.05836,65471.0,65465.0,0.100924]
[1721202082597,0.1968,65467.0,65466.0,0.15438174]
[1721202082822,0.1968,65467.0,65466.0,0.25438174]
[1721202083045,0.1468,65467.0,65466.0,0.25438174]
[1721202083239,0.1468,65467.0,65466.0,0.40713274]
[1721202083801,0.1468,65467.0,65466.0,0.41613274]
[1721202084641,0.1468,65467.0,65466.0,0.43591528]
[1721202085984,0.1968,65467.0,65466.0,0.28316428]
[1721202086652,0.349548,65467.0,65466.0,0.12878254]
[1721202086853,0.1968,65467.0,65466.0,0.02878254]
[1721202087284,0.1968,65467.0,65466.0,0.017]
[1721202087431,0.1968,65467.0,65466.0,0.02878254]
[1721202088046,0.1468,65467.0,65466.0,0.18316428]
[1721202088257,0.1468,65467.0,65466.0,0.43591528]
[1721202088400,0.1468,65467.0,65466.0,0.74141728]
[1721202090060,0.1968,65467.0,65466.0,0.28316428]
[1721202090270,0.1968,65467.0,65466.0,0.12878254]
[1721202090488,0.1968,65467.0,65466.0,0.02878254]
[1721202090489,0.655045,65467.0,65466.0,0.02878254]
[1721202090694,1.266039,65467.0,65466.0,0.02878254]
[1721202090847,1.266039,65467.0,65466.0,0.017]
[1721202091679,0.08553479,65471.0,65465.0,0.000924]
[1721202091680,1.262957,65466.0,65465.0,0.000924]
[1721202091896,1.262957,65466.0,65447.0,0.152795]
[1721202091897,0.152777,65455.0,65447.0,0.152795]
[1721202092101,0.1456,65441.0,65430.0,0.2]
[1721202092271,0.1456,65441.0,65440.0,0.152811]
[1721202092472,0.1456,65441.0,65440.0,0.61281574]
[1721202092671,0.0759,65447.0,65446.0,0.152797]
[1721202092872,0.0759,65447.0,65446.0,0.30717874]
[1721202093229,0.776337,65459.0,65446.0,0.15438174]
[1721202093230,0.0617,65455.0,65446.0,0.15438174]
[1721202093438,0.1117,65455.0,65454.0,0.152779]
[1721202093644,0.0617,65455.0,65454.0,0.30716074]
[1721202094226,0.0617,65455.0,65454.0,0.40716074]
[1721202094429,0.0617,65455.0,65454.0,0.72454727]
[1721202094706,0.0659,65460.0,65454.0,0.57176827]
[1721202094912,0.0659,65460.0,65459.0,0.458301]
[1721202095117,0.0659,65460.0,65459.0,1.01821674]
[1721202095322,0.0659,65460.0,65459.0,1.03002611]
[1721202095495,0.04929764,65468.0,65467.0,0.458245]
[1721202095738,0.04929764,65468.0,65467.0,0.71262674]
[1721202095942,0.00836,65474.0,65470.0,0.458224]
[1721202096155,0.15456,65471.0,65470.0,0.61260574]
[1721202096319,0.15456,65471.0,65470.0,0.62437295]
[1721202097670,0.15556,65471.0,65470.0,0.64037295]
[1721202099956,0.07366,65471.0,65470.0,0.94585595]
[1721202100177,0.00936,65471.0,65470.0,1.57433895]
[1721202100407,0.00936,65471.0,65470.0,1.24585595]
[1721202105679,0.00936,65471.0,65470.0,1.23408874]
[1721202106820,0.00936,65471.0,65470.0,1.03408874]
[1721202109306,0.00936,65471.0,65470.0,1.04585595]
[1721202110877,0.20316,65471.0,65470.0,0.28214895]
[1721202111258,0.20316,65471.0,65470.0,0.43488995]
[1721202112022,0.15316,65471.0,65470.0,0.43488995]
[1721202112902,0.20316,65471.0,65470.0,0.12776721]
[1721202113223,0.20316,65471.0,65470.0,0.016]
[1721202113555,0.20316,65471.0,65470.0,0.02776721]
[1721202114416,0.355899,65471.0,65470.0,0.02776721]
[1721202114572,0.661377,65471.0,65470.0,0.02776721]
[1721202114779,0.661377,65471.0,65470.0,0.016]
[1721202117520,0.966855,65471.0,65470.0,0.016]
[1721202117918,1.272333,65471.0,65470.0,0.016]
[1721202118851,1.272333,65471.0,65470.0,0.008]
[1721202119233,1.272333,65471.0,65470.0,0.001]
[1721202119435,1.271333,65471.0,65470.0,0.001]
[1721202119637,1.214557,65466.0,65465.0,0.000924]
[1721202119848,1.34173179,65466.0,65465.0,0.000924]
[1721202120450,1.264557,65466.0,65465.0,0.000924]
[1721202121874,1.270557,65466.0,65465.0,0.001924]
[1721202122083,1.271557,65466.0,65465.0,0.001924]
[1721202122286,1.271557,65466.0,65465.0,0.000924]
[1721202122287,0.966055,65466.0,65465.0,0.000924]
[1721202122634,0.967055,65466.0,65465.0,0.000924]
[1721202123311,0.963055,65466.0,65465.0,0.000924]
[1721202123508,0.961055,65466.0,65465.0,0.000924]
[1721202123722,0.967055,65466.0,65465.0,0.001924]
[1721202124853,1.272557,65466.0,65465.0,0.001924]
[1721202124989,1.31770711,65466.0,65465.0,0.001924]
[1721202125178,1.272557,65466.0,65465.0,0.001924]
[1721202125379,1.3157072,65466.0,65465.0,0.001924]
[1721202125732,1.3107072,65466.0,65465.0,0.000924]
[1721202126098,1.3177072,65466.0,65465.0,0.001924]
[1721202126329,1.271557,65466.0,65465.0,0.001924]
[1721202126536,1.272557,65466.0,65465.0,0.001924]
[1721202130578,1.271557,65466.0,65465.0,0.001924]
[1721202130781,1.46893874,65466.0,65465.0,0.000924]
[1721202130985,2.12586422,65466.0,65465.0,0.001924]
[1721202131190,2.20288979,65466.0,65465.0,0.002924]
[1721202131407,1.94391637,65466.0,65465.0,0.002924]
[1721202131647,1.85326657,65466.0,65465.0,0.002924]
[1721202131795,1.96657318,65466.0,65465.0,0.002924]
[1721202132118,1.94389547,65466.0,65465.0,0.002924]
[1721202132323,2.02729608,65466.0,65465.0,0.001924]
[1721202132475,0.05,65439.0,65438.0,0.252816]
[1721202132685,0.05,65439.0,65438.0,0.40719774]
[1721202132887,0.05,65440.0,65438.0,0.25438174]
[1721202133073,0.05,65443.0,65439.0,0.15438174]
[1721202133274,0.05,65443.0,65440.0,0.1]
[1721202133582,0.05,65446.0,65442.0,0.152806]
[1721202133791,0.05,65446.0,65443.0,0.30718574]
[1721202133991,0.05,65446.0,65443.0,0.15438174]
[1721202134194,0.152791,65449.0,65443.0,0.15438174]
[1721202134195,0.05,65444.0,65443.0,0.15438174]
[1721202134395,0.0662,65443.0,65440.0,0.1]
[1721202134750,0.281409,65441.0,65440.0,0.006]
[1721202134904,0.587027,65441.0,65440.0,0.006]
[1721202135320,1.198263,65441.0,65440.0,0.006]
[1721202135521,1.261763,65441.0,65440.0,0.006]
[1721202135723,1.261763,65441.0,65440.0,0.019]
[1721202136382,1.567381,65441.0,65440.0,0.019]
[1721202136522,1.261763,65441.0,65440.0,0.013]
[1721202136728,0.152824,65435.0,65428.0,0.152839]
[1721202136963,0.05,65431.0,65428.0,0.152839]
[1721202137172,0.05,65431.0,65427.0,0.152841]
[1721202137367,0.05,65431.0,65427.0,0.30722274]
[1721202137573,0.05,65431.0,65429.0,0.0757]
[1721202137752,0.05,65433.0,65430.0,0.152835]
[1721202137949,0.05,65434.0,65430.0,0.30721674]
[1721202138467,0.003,65435.0,65430.0,0.15438174]
[1721202138468,0.05,65431.0,65430.0,0.15438174]
[1721202139027,0.05,65431.0,65430.0,0.30721674]
[1721202139274,0.15282,65437.0,65430.0,0.15438174]
[1721202139275,0.05,65432.0,65430.0,0.15438174]
[1721202139431,0.05,65431.0,65430.0,0.15438174]
[1721202140053,0.05,65431.0,65430.0,0.15638174]
[1721202141173,0.051,65431.0,65430.0,0.16138174]
[1721202141554,0.052,65431.0,65430.0,0.16838174]
[1721202144336,0.958462,65431.0,65430.0,0.014]
[1721202145838,0.957462,65431.0,65430.0,0.007]
[1721202146295,0.959462,65431.0,65430.0,0.007]
[1721202146501,0.152845,65426.0,65424.0,0.000924]
[1721202146738,0.05,65425.0,65424.0,0.000924]
[1721202147105,1.33819979,65425.0,65424.0,0.000924]
[1721202147532,1.33819979,65425.0,65424.0,0.00087698]
[1721202148211,1.56049979,65425.0,65424.0,0.00087698]
[1721202148441,1.56249979,65425.0,65424.0,0.00087698]
[1721202148818,1.56249979,65425.0,65424.0,0.00487698]
[1721202149019,1.56549979,65425.0,65424.0,0.00487698]
[1721202149425,1.56549979,65425.0,65424.0,0.00087698]
[1721202149861,1.56749979,65425.0,65424.0,0.00087698]
[1721202151070,1.268025,65425.0,65424.0,0.00087698]
[1721202153067,1.268025,65425.0,65424.0,0.30810772]
[1721202153068,0.007,65425.0,65424.0,0.30810772]
[1721202153251,0.007,65425.0,65424.0,0.38550772]
[1721202153435,0.007,65425.0,65424.0,0.15525872]
[1721202153847,0.005,65425.0,65424.0,0.15525872]
[1721202154292,0.05,65427.0,65424.0,0.15525872]
[1721202154501,0.05,65428.0,65425.0,0.15438174]
[1721202154830,0.152832,65432.0,65425.0,0.15438174]
[1721202154831,0.05,65430.0,65425.0,0.15438174]
[1721202155031,0.05,65429.0,65425.0,0.15438174]
[1721202155230,0.202832,65432.0,65425.0,0.15438174]
[1721202155632,0.05,65431.0,65425.0,0.15438174]
[1721202155840,0.05,65431.0,65425.0,0.15938174]
[1721202156055,0.05,65427.0,65425.0,0.15938174]
[1721202156314,0.05,65427.0,65425.0,0.16438174]
[1721202156521,0.05,65426.0,65425.0,0.16438174]
[1721202156647,0.05,65428.0,65425.0,0.31722774]
[1721202156845,0.152831,65432.0,65427.0,0.152841]
[1721202156846,0.05,65432.0,65427.0,0.152841]
[1721202157181,0.05,65432.0,65425.0,0.16738174]
[1721202157182,0.05,65432.0,65425.0,0.32022674]
[1721202157384,0.05,65431.0,65425.0,0.32022674]
[1721202157543,0.05,65431.0,65425.0,0.31022674]
[1721202157949,0.05,65431.0,65427.0,0.152841]
[1721202158149,0.05,65432.0,65428.0,0.152838]
[1721202158345,0.30562,65441.0,65427.0,0.152842]
[1721202158346,0.05,65433.0,65427.0,0.152842]
[1721202158546,0.305607,65444.0,65428.0,0.21938174]
[1721202158547,0.16203039,65442.0,65428.0,0.21938174]
[1721202158763,0.16203039,65442.0,65433.0,0.152826]
[1721202158764,0.05,65439.0,65433.0,0.152826]
[1721202159061,0.05,65437.0,65433.0,0.15438174]
[1721202159264,0.05,65434.0,65433.0,0.15438174]
[1721202160196,0.05,65435.0,65434.0,0.152825]
[1721202160378,0.05,65437.0,65434.0,0.152825]
[1721202162380,0.05,65434.0,65433.0,0.15938174]
[1721202162507,0.05,65434.0,65433.0,0.15438174]
[1721202162706,0.05,65434.0,65433.0,0.30720974]
[1721202163377,0.05,65435.0,65433.0,0.30720974]
[1721202163579,0.05,65435.0,65433.0,0.31120974]
[1721202164950,0.05,65434.0,65433.0,0.30720974]
[1721202165321,0.051,65434.0,65433.0,0.31320974]
[1721202165448,0.051,65434.0,65433.0,0.006]
[1721202165649,0.05,65434.0,65429.0,0.152836]
[1721202165969,0.305635,65438.0,65424.0,0.38827398]
[1721202165970,0.05,65428.0,65424.0,0.38827398]
[1721202166132,0.0602,65431.0,65424.0,0.00087698]
[1721202166133,0.05,65425.0,65424.0,0.00087698]
[1721202166938,0.355693,65425.0,65424.0,0.00087698]
[1721202167135,0.508539,65425.0,65424.0,0.00287698]
[1721202167399,0.202846,65425.0,65424.0,0.00287698]
[1721202167560,0.202846,65425.0,65424.0,0.00087698]
[1721202168536,0.05,65425.0,65424.0,0.00087698]
[1721202168736,0.0602,65431.0,65424.0,0.00087698]
[1721202168737,0.05,65427.0,65424.0,0.00087698]
[1721202169025,0.003,65425.0,65424.0,0.00087698]
[1721202169169,0.05,65427.0,65424.0,0.00087698]
[1721202169592,0.051,65425.0,65424.0,0.00087698]
[1721202169769,0.053,65425.0,65424.0,0.00087698]
[1721202169957,0.204846,65425.0,65424.0,0.00087698]
[1721202170157,0.347746,65425.0,65424.0,0.00087698]
[1721202170356,0.653439,65425.0,65424.0,0.00087698]
[1721202171056,0.345746,65425.0,65424.0,0.00087698]
[1721202171276,0.05,65425.0,65424.0,0.00087698]
[1721202172034,0.202846,65425.0,65424.0,0.00087698]
[1721202172215,0.204846,65425.0,65424.0,0.00087698]
[1721202172529,0.205846,65425.0,65424.0,0.00087698]
[1721202172734,0.203846,65425.0,65424.0,0.00087698]
[1721202172928,0.203846,65425.0,65424.0,0.00187698]
[1721202173111,0.001,65425.0,65424.0,0.15472598]
[1721202173276,0.001,65425.0,65424.0,0.46042398]
[1721202174097,0.001,65425.0,65424.0,0.54262398]
[1721202174577,0.001,65425.0,65424.0,1.00270372]
[1721202179164,0.001,65425.0,65424.0,0.69700572]
[1721202179359,0.001,65425.0,65424.0,0.61480572]
[1721202179563,0.114,65425.0,65424.0,0.15472598]
[1721202180353,0.064,65425.0,65424.0,0.46042398]
[1721202180561,0.001,65425.0,65424.0,0.46042398]
[1721202183023,0.00184,65425.0,65424.0,0.46042398]
[1721202183629,0.00184,65425.0,65424.0,0.76612198]
[1721202184052,0.00184,65425.0,65424.0,0.91352198]
[1721202184505,0.00184,65425.0,65424.0,0.84902198]
[1721202184705,0.00184,65425.0,65424.0,1.30910172]
[1721202184949,0.00184,65425.0,65424.0,1.40910172]
[1721202185178,0.00184,65425.0,65424.0,1.53601646]
[1721202185381,0.00184,65425.0,65424.0,1.59811646]
[1721202185676,0.00084,65425.0,65424.0,1.90281446]
[1721202185886,0.00084,65425.0,65424.0,1.92581446]
[1721202186163,0.00184,65425.0,65424.0,1.94881446]
[1721202186708,0.00284,65425.0,65424.0,1.96081446]
[1721202187114,0.00284,65425.0,65424.0,1.94981446]
[1721202187515,0.00284,65425.0,65424.0,1.83689972]
[1721202187712,0.00284,65425.0,65424.0,1.96380311]
[1721202187997,0.00284,65425.0,65424.0,1.83689972]
[1721202188187,0.00284,65425.0,65424.0,1.96380083]
[1721202189253,0.00284,65425.0,65424.0,1.63510104]
[1721202189525,0.00284,65425.0,65424.0,1.57300104]
[1721202190717,0.00284,65425.0,65424.0,1.44610172]
[1721202190868,0.00284,65425.0,65424.0,1.57300992]
[1721202192366,0.00284,65425.0,65424.0,1.90170792]
[1721202192745,0.00284,65425.0,65424.0,2.27160592]
[1721202193169,0.00284,65425.0,65424.0,2.28266245]
[1721202193576,0.00084,65425.0,65424.0,2.24466245]
[1721202193967,0.00184,65425.0,65424.0,2.19047719]
[1721202194167,0.00184,65425.0,65424.0,2.31736662]
[1721202194934,0.00184,65425.0,65424.0,3.01736662]
[1721202196965,0.00184,65425.0,65424.0,2.71166862]
[1721202197108,0.00184,65425.0,65424.0,2.66594596]
[1721202197302,0.00184,65425.0,65424.0,2.71167525]
[1721202197507,0.00184,65425.0,65424.0,2.66594596]
[1721202197758,0.00184,65425.0,65424.0,2.60174596]
[1721202198508,0.00184,65425.0,65424.0,2.19014796]
[1721202198861,0.00184,65425.0,65424.0,1.49014796]
[1721202199789,0.00184,65425.0,65424.0,1.51314796]
[1721202200156,0.00184,65425.0,65424.0,1.51315848]
[1721202200405,0.00184,65425.0,65424.0,1.96175648]
[1721202200771,0.00184,65425.0,65424.0,1.9608795]
[1721202200976,0.00184,65425.0,65424.0,1.94675648]
[1721202203301,0.00184,65425.0,65424.0,1.94674914]
[1721202203935,0.00184,65425.0,65424.0,1.94674868]
[1721202204342,0.00184,65425.0,65424.0,1.94674909]
[1721202205055,0.00184,65425.0,65424.0,1.94674898]
[1721202205347,0.00184,65425.0,65424.0,2.64674898]
[1721202206098,0.00184,65425.0,65424.0,2.64674896]
[1721202206769,0.00184,65425.0,65424.0,2.64674897]
[1721202207515,0.00066792,65425.0,65424.0,2.64674897]
[1721202208273,0.00066792,65425.0,65424.0,2.69248061]
[1721202208631,0.00066792,65425.0,65424.0,2.75592432]
[1721202209903,0.00066792,65425.0,65424.0,2.51985625]
[1721202210035,0.00066792,65425.0,65424.0,2.75590877]
[1721202211826,0.00066792,65425.0,65424.0,2.05590877]
[1721202212945,0.00109133,65438.0,65437.0,1.069729]
[1721202213147,0.0663,65439.0,65438.0,0.76408]
[1721202213352,0.0663,65439.0,65438.0,1.14534916]
[1721202213489,0.0663,65439.0,65438.0,1.45098116]
[1721202214446,0.0663,65439.0,65438.0,1.46098116]
[1721202214990,0.06511872,65439.0,65438.0,1.46098116]
[1721202215195,0.0597009,65439.0,65438.0,1.46098116]
[1721202215450,0.0814,65441.0,65440.0,0.764057]
[1721202215647,0.0814,65441.0,65440.0,0.91843874]
[1721202215848,0.0814,65441.0,65440.0,1.22406174]
[1721202216920,0.0814,65441.0,65440.0,1.25105689]
[1721202217304,0.0814,65441.0,65440.0,1.37794301]
[1721202218521,0.1438,65441.0,65440.0,1.37794301]
[1721202219492,0.1438,65441.0,65440.0,1.37794284]
[1721202219952,0.1438,65441.0,65440.0,1.25105689]